bitfinex-derivatives/quotes_SOLF0:USTF0_20241025
["timestamp","ask_amount","ask_price","bid_price","bid_amount"]
[1729878939236,2.961,168.94,168.87,2.962]
[1729878939420,28.34116069,168.96,168.87,2.962]
[1729878939829,2.961,168.94,168.87,2.962]
[1729878940039,28.34116069,168.96,168.87,2.962]
[1729878940632,22.66116069,168.9,168.75,28.34116069]
[1729878940938,22.66116069,168.9,168.79,2.538]
[1729878941238,22.66116069,168.9,168.82,2.9629]
[1729878941430,22.66116069,168.9,168.79,2.538]
[1729878941635,22.66116069,168.88,168.79,8.218]
[1729878942235,22.66116069,168.88,168.68,5.931]
[1729878942530,22.66116069,168.88,168.73,22.66116069]
[1729878942737,22.66116069,168.82,168.71,2.9649]
[1729878943159,2.9634,168.8,168.74,22.66116069]
[1729878943335,22.66116069,168.84,168.75,6.12]
[1729878944133,2.9634,168.81,168.74,2.9643]
[1729878944341,22.66116069,168.84,168.74,6.12]
[1729878944830,22.66116069,168.82,168.7,3.7865]
[1729878945030,22.66116069,168.82,168.71,6.12]
[1729878945231,22.66116069,168.82,168.72,6.12]
[1729878946236,22.66116069,168.75,168.62,6.12]
[1729878946442,22.66116069,168.75,168.64,2.5524]
[1729878946933,22.66116069,168.73,168.64,2.5524]
[1729878947134,22.66116069,168.73,168.64,1.2537]
[1729878947330,22.66116069,168.73,168.63,17.28182117]
[1729878947331,6.12,168.74,168.63,9.86072117]
[1729878947537,22.66116069,168.68,168.63,9.15952117]
[1729878948242,6.12,168.71,168.63,9.15952117]
[1729878948544,22.66116069,168.7,168.63,9.15952117]
[1729878948746,22.66116069,168.68,168.63,9.15952117]
[1729878948944,180.02386167,168.72,168.63,9.15952117]
[1729878949149,25.62626069,168.71,168.63,9.15952117]
[1729878949352,22.66116069,168.71,168.65,2.9659]
[1729878949545,22.66116069,168.71,168.63,15.27952117]
[1729878949746,6.12,168.76,168.63,15.27952117]
[1729878949954,22.66116069,168.68,168.63,9.15952117]
[1729878950653,2.9662,168.64,168.63,9.15952117]
[1729878951057,22.66116069,168.68,168.63,9.15952117]
[1729878951250,22.66116069,168.7,168.63,9.15952117]
[1729878951949,6.12,168.72,168.63,9.15952117]
[1729878952352,2.9652,168.7,168.63,9.15952117]
[1729878952541,343.0,168.78,168.63,9.15952117]
[1729878952745,22.66116069,168.75,168.64,1.2745]
[1729878953252,22.66116069,168.7,168.63,9.15952117]
[1729878953943,2.9655,168.68,168.63,9.15952117]
[1729878954149,28.80116069,168.72,168.63,9.15952117]
[1729878954542,2.9654,168.69,168.63,9.15952117]
[1729878954852,22.66116069,168.65,168.63,9.15952117]
[1729878955053,2.9668,168.61,168.53,2.5804]
[1729878955253,22.66116069,168.62,168.53,2.5804]
[1729878955954,6.46,168.65,168.52,1.93853306]
[1729878955955,22.66116069,168.58,168.52,1.93853306]
[1729878956946,6.46,168.6,168.52,1.93853306]
[1729878957141,64.02,168.71,168.52,1.93853306]
[1729878957142,22.66116069,168.59,168.52,4.90673306]
[1729878957347,22.66116069,168.57,168.52,1.93853306]
[1729878957650,22.66116069,168.62,168.52,1.93853306]
[1729878957852,2.9669,168.61,168.53,2.9681]
[1729878958052,2.9669,168.61,168.52,1.93853306]
[1729878958453,2.9661,168.65,168.53,22.66116069]
[1729878958656,597.66116069,168.87,168.56,22.66116069]
[1729878958657,22.66116069,168.71,168.56,22.66116069]
[1729878958853,22.66116069,168.68,168.57,6.46]
[1729878959450,22.66116069,168.63,168.52,1.93853306]
[1729878959654,6.78,168.67,168.52,1.93853306]
[1729878960045,25.62766069,168.63,168.55,2.9677]
[1729878960251,22.66116069,168.6,168.52,1.93853306]
[1729878961254,2.9672,168.58,168.52,1.93853306]
[1729878961454,22.66116069,168.6,168.52,1.93853306]
[1729878961958,2.9679,168.55,168.52,1.93853306]
[1729878962155,22.66116069,168.6,168.52,1.93853306]
[1729878962361,22.66116069,168.53,168.36,9.3343]
[1729878962557,29.44116069,168.53,168.37,22.66116069]
[1729878962857,2.9681,168.53,168.43,22.66116069]
[1729878963063,6.78,168.58,168.44,10.5734]
[1729878963362,2.9683,168.53,168.46,2.9693]
[1729878963662,22.66116069,168.53,168.44,3.7934]
[1729878964760,2.9687,168.5,168.44,3.7934]
[1729878964954,22.66116069,168.53,168.42,6.78]
[1729878965161,22.66116069,168.53,168.41,2.5553]
[1729878965364,22.66116069,168.53,168.42,6.78]
[1729878965767,22.66116069,168.56,168.42,6.78]
[1729878966066,22.66116069,168.56,168.46,2.9693]
[1729878966260,22.66116069,168.56,168.42,6.78]
[1729878966457,22.66116069,168.56,168.42,29.44116069]
[1729878967164,22.66116069,168.53,168.42,6.78]
[1729878967355,22.66116069,168.51,168.41,2.5553]
[1729878967562,22.66116069,168.53,168.41,2.5553]
[1729878968061,2.9685,168.51,168.45,2.9695]
[1729878968359,22.66116069,168.53,168.41,2.5553]
[1729878969161,2.969,168.49,168.44,2.9697]
[1729878969465,22.66116069,168.5,168.39,7.14]
[1729878969662,22.66116069,168.5,168.4,7.14]
[1729878969861,2.9693,168.47,168.41,2.9701]
[1729878970063,2.9693,168.47,168.4,7.14]
[1729878970260,22.66116069,168.5,168.4,7.14]
[1729878970858,2.9685,168.51,168.46,2.9693]
[1729878971064,22.66116069,168.53,168.4,7.14]
[1729878971260,22.66116069,168.53,168.41,22.66116069]
[1729878971559,22.66116069,168.6,168.44,22.66116069]
[1729878971760,22.66116069,168.6,168.45,10.876]
[1729878971959,2.9678,168.55,168.5,2.9686]
[1729878972165,22.66116069,168.6,168.46,7.14]
[1729878972366,22.66116069,168.54,168.38,7.14]
[1729878972570,22.66116069,168.54,168.44,2.9696]
[1729878972758,22.66116069,168.51,168.39,22.66116069]
[1729878972957,22.66116069,168.49,168.36,3.7165]
[1729878973173,22.66116069,168.51,168.36,3.7165]
[1729878973174,22.66116069,168.46,168.36,3.7165]
[1729878973659,2.9696,168.45,168.4,2.9703]
[1729878973863,22.66116069,168.51,168.4,2.9703]
[1729878974056,22.66116069,168.51,168.37,22.66116069]
[1729878974262,2.9692,168.47,168.39,22.66116069]
[1729878974461,2.9692,168.47,168.36,3.7165]
[1729878974462,22.66116069,168.51,168.36,3.7165]
[1729878974661,7.14,168.52,168.36,3.7165]
[1729878974960,29.80116069,168.52,168.37,22.66116069]
[1729878975173,29.80116069,168.52,168.39,2.9704]
[1729878975470,22.66116069,168.47,168.33,7.14]
[1729878975659,2.9702,168.42,168.35,2.9713]
[1729878975866,22.66116069,168.48,168.33,7.14]
[1729878976062,22.66116069,168.48,168.32,64.06]
[1729878976267,22.66116069,168.48,168.34,10.1114]
[1729878976462,22.66116069,168.48,168.34,7.14]
[1729878976657,7.14,168.49,168.36,22.66116069]
[1729878977259,7.14,168.49,168.37,10.1108]
[1729878977464,22.66116069,168.47,168.37,7.14]
[1729878977674,7.14,168.49,168.37,7.14]
[1729878977966,7.14,168.49,168.4,2.9704]
[1729878978174,22.66116069,168.5,168.37,7.14]
[1729878978175,22.66116069,168.5,168.38,2.4908]
[1729878978362,22.66116069,168.5,168.38,3.7864]
[1729878978867,22.66116069,168.44,168.2,64.12]
[1729878979069,29.80116069,168.47,168.31,22.66116069]
[1729878979265,22.66116069,168.47,168.31,22.66116069]
[1729878979572,343.0,168.57,168.3,3.6986]
[1729878979573,343.0,168.57,168.37,22.66116069]
[1729878979766,22.66116069,168.49,168.38,3.6986]
[1729878980171,22.66116069,168.49,168.38,2.403]
[1729878980869,22.66116069,168.47,168.38,2.403]
[1729878981064,22.66116069,168.46,168.33,1.2566]
[1729878981262,7.14,168.48,168.33,1.2566]
[1729878981263,7.14,168.48,168.33,23.91776069]
[1729878981465,2.97,168.43,168.36,2.9711]
[1729878981661,7.14,168.48,168.33,23.91776069]
[1729878982068,2.9699,168.44,168.37,2.9708]
[1729878982264,22.66116069,168.46,168.33,23.91776069]
[1729878982571,2.9699,168.43,168.33,23.91776069]
[1729878982762,22.66116069,168.46,168.3,1.1994]
[1729878983074,22.66116069,168.43,168.3,8.6794]
[1729878983273,22.66116069,168.43,168.32,22.66116069]
[1729878983474,22.66116069,168.46,168.32,22.66116069]
[1729878983675,22.66116069,168.46,168.33,1.2566]
[1729878984266,25.63056069,168.46,168.39,2.9704]
[1729878984571,25.63056069,168.46,168.33,1.2566]
[1729878984572,22.66116069,168.43,168.33,1.2566]
[1729878984962,2.9704,168.4,168.33,1.2566]
[1729878985364,2.9704,168.4,168.33,4.2282]
[1729878985562,2.9706,168.39,168.33,4.2282]
[1729878985867,22.66116069,168.43,168.33,4.2282]
[1729878986068,22.66116069,168.43,168.3,1.1994]
[1729878986271,2.9708,168.38,168.32,2.9718]
[1729878986467,22.66116069,168.43,168.31,7.88]
[1729878986965,22.66116069,168.38,168.29,9.25984188]
[1729878987774,7.88,168.41,168.29,9.25984188]
[1729878987775,22.66116069,168.37,168.29,9.25984188]
[1729878988862,22.66116069,168.35,168.29,9.25984188]
[1729878989260,2.9721,168.31,168.29,9.25984188]
[1729878989461,22.66116069,168.35,168.29,9.25984188]
[1729878989771,22.66116069,168.37,168.29,9.25984188]
[1729878990970,2.9719,168.32,168.29,9.25984188]
[1729878991170,22.66116069,168.37,168.29,9.25984188]
[1729878992597,2.9715,168.34,168.29,9.25984188]
[1729878993087,30.54116069,168.39,168.29,9.25984188]
[1729878993380,22.66116069,168.39,168.29,9.25984188]
[1729878993769,22.66116069,168.39,168.31,2.9719]
[1729878993977,22.66116069,168.42,168.29,9.25984188]
[1729878994172,22.66116069,168.42,168.3,2.528]
[1729878994375,2.9709,168.38,168.32,2.9718]
[1729878994578,22.66116069,168.42,168.32,2.9718]
[1729878994772,22.66116069,168.42,168.3,2.528]
[1729878995596,22.66116069,168.45,168.32,22.66116069]
[1729878995793,22.66116069,168.42,168.29,9.25984188]
[1729878996001,2.9718,168.33,168.29,11.78784188]
[1729878996202,22.66116069,168.37,168.29,9.25984188]
[1729878996692,2.9718,168.33,168.29,9.25984188]
[1729878996889,22.66116069,168.37,168.29,9.25984188]
[1729878997203,2.9717,168.33,168.29,9.25984188]
[1729878997408,22.66116069,168.37,168.29,9.25984188]
[1729878997696,22.66116069,168.39,168.29,9.25984188]
[1729878998189,2.9715,168.34,168.29,9.25984188]
[1729878998395,30.54116069,168.36,168.29,9.25984188]
[1729878998692,2.9722,168.3,168.29,9.25984188]
[1729878999013,22.66116069,168.3,168.29,9.25984188]
[1729878999297,25.63336069,168.3,168.29,9.25984188]
[1729879000802,22.66116069,168.3,168.17,9.175]
[1729879001005,22.66116069,168.33,168.2,1.2878]
[1729879001305,22.66116069,168.33,168.2,2.4868]
[1729879001502,22.66116069,168.33,168.22,22.66116069]
[1729879001709,22.66116069,168.36,168.23,7.88]
[1729879001894,22.66116069,168.33,168.23,7.88]
[1729879002210,22.66116069,168.31,168.2,4.2617]
[1729879002503,30.54116069,168.31,168.2,4.2617]
[1729879002696,30.54116069,168.31,168.2,1.2878]
[1729879002894,22.66116069,168.31,168.1,1.99741736]
[1729879003201,2.9729,168.26,168.15,22.66116069]
[1729879003607,22.66116069,168.31,168.18,22.66116069]
[1729879003799,22.66116069,168.31,168.22,2.9735]
[1729879003997,22.66116069,168.31,168.19,3.9046]
[1729879004199,2.9736,168.22,168.11,7.88]
[1729879004409,22.66116069,168.24,168.12,3.9046]
[1729879004805,2.9738,168.21,168.12,3.9046]
[1729879005003,22.66116069,168.24,168.12,3.9046]
[1729879005203,2.9736,168.22,168.12,3.9046]
[1729879005708,22.66116069,168.24,168.12,3.9046]
[1729879006006,2.9738,168.21,168.12,3.9046]
[1729879006210,22.66116069,168.24,168.12,3.9046]
[1729879007017,30.54116069,168.27,168.12,26.56576069]
[1729879007201,86.86116069,168.36,168.15,22.66116069]
[1729879007202,22.66116069,168.29,168.15,22.66116069]
[1729879007403,22.66116069,168.32,168.18,22.66116069]
[1729879007601,22.66116069,168.32,168.19,7.88]
[1729879007801,7.88,168.33,168.19,22.66116069]
[1729879008027,22.66116069,168.35,168.22,22.66116069]
[1729879008204,2.9718,168.33,168.25,2.9729]
[1729879008404,22.66116069,168.35,168.22,30.54116069]
[1729879008815,2.972,168.32,168.27,2.9727]
[1729879009113,22.66116069,168.39,168.25,22.66116069]
[1729879009618,22.66116069,168.39,168.29,2.9722]
[1729879009921,22.66116069,168.39,168.25,22.66116069]
[1729879010115,2.9717,168.33,168.28,2.9725]
[1729879010813,22.66116069,168.39,168.25,22.66116069]
[1729879011010,22.66116069,168.36,168.22,22.66116069]
[1729879011208,2.9723,168.3,168.24,2.9731]
[1729879011415,2.9723,168.3,168.22,22.66116069]
[1729879012012,2.9723,168.3,168.25,2.973]
[1729879012312,2.9723,168.3,168.15,2.9463917]
[1729879012313,22.66116069,168.28,168.14,7.88]
[1729879012510,22.66116069,168.29,168.16,2.4311]
[1729879012711,22.66116069,168.26,168.16,2.4311]
[1729879013107,22.66116069,168.26,168.16,5.4057]
[1729879013412,2.9739,168.21,168.16,2.4311]
[1729879014016,22.66116069,168.26,168.16,2.4311]
[1729879014318,22.66116069,168.26,168.12,7.88]
[1729879014912,22.66116069,168.26,168.1,35.08357805]
[1729879015116,22.66116069,168.23,168.1,4.54241736]
[1729879015310,7.84,168.22,168.1,4.54241736]
[1729879015504,7.84,168.22,168.12,2.9752]
[1729879015710,2.9741,168.19,168.1,4.54241736]
[1729879015918,2.9741,168.19,168.1,27.20357805]
[1729879016416,7.84,168.22,168.1,4.54241736]
[1729879016811,22.66116069,168.26,168.1,4.54241736]
[1729879017125,7.84,168.25,168.1,4.54241736]
[1729879017418,22.66116069,168.2,168.1,1.99741736]
[1729879017611,7.84,168.19,168.1,1.99741736]
[1729879018510,22.66116069,168.18,168.1,1.99741736]
[1729879018710,22.66116069,168.13,168.1,1.99741736]
[1729879019115,30.86116069,168.13,168.1,1.99741736]
[1729879019316,2.9755,168.11,168.0,88.9773]
[1729879019611,22.66116069,168.09,168.0,86.0]
[1729879020118,22.88787505,168.11,168.0,86.0]
[1729879020421,22.88787505,168.19,168.0,86.0]
[1729879020422,22.88787505,168.14,168.0,86.0]
[1729879020608,22.88787505,168.19,168.0,86.0]
[1729879020813,2.9752,168.13,168.07,2.9762]
[1729879021110,22.88787505,168.16,168.03,22.88787505]
[1729879021316,343.0,168.24,168.0,86.0]
[1729879021317,22.88787505,168.14,168.0,86.0]
[1729879021524,22.88787505,168.13,168.0,86.0]
[1729879022008,2.9753,168.13,168.02,22.88787505]
[1729879022316,32.16787505,168.16,168.04,22.88787505]
[1729879022514,182.90265021,168.25,168.1,22.88787505]
[1729879022515,202.7442504,168.25,168.1,22.88787505]
[1729879022716,9.28,168.27,168.12,22.88787505]
[1729879022924,9.28,168.27,168.11,11.8792]
[1729879022925,22.88787505,168.28,168.13,9.28]
[1729879023214,22.88787505,168.25,168.09,22.88787505]
[1729879023416,22.88787505,168.25,168.12,1.2999]
[1729879023614,2.90345635,168.38,168.12,24.18777505]
[1729879023825,22.88787505,168.28,168.12,1.2999]
[1729879024123,22.88787505,168.23,168.12,1.2999]
[1729879024312,37.15519531,168.22,168.12,1.2999]
[1729879024512,37.15519531,168.25,168.12,1.2999]
[1729879024715,37.15519531,168.16,168.04,1.2341]
[1729879024922,37.15519531,168.13,168.04,1.2341]
[1729879025222,37.15519531,168.13,167.91,5.9581]
[1729879025223,37.15519531,168.05,167.9,37.15519531]
[1729879025523,37.15519531,168.05,167.93,47.71519531]
[1729879025819,37.15519531,168.08,167.95,37.15519531]
[1729879026117,10.56,168.12,167.92,2.4718]
[1729879026118,37.15519531,168.05,167.92,2.4718]
[1729879026416,37.15519531,168.05,167.93,37.15519531]
[1729879026621,37.15519531,168.08,167.93,37.15519531]
[1729879026925,37.15519531,168.06,167.92,2.4718]
[1729879027124,37.15519531,168.06,167.92,39.62699531]
[1729879027416,37.15519531,168.06,167.92,2.4718]
[1729879027607,37.15519531,168.06,167.88,10.96]
[1729879027809,37.15519531,168.09,167.99,2.9776]
[1729879028007,37.15519531,168.09,167.94,37.15519531]
[1729879028210,37.15519531,168.03,167.7,64.26]
[1729879028420,10.56,168.12,167.91,37.15519531]
[1729879028622,10.56,168.12,167.93,37.15519531]
[1729879028623,37.15519531,168.06,167.93,37.15519531]
[1729879028813,2.9766,168.06,167.97,2.9779]
[1729879029015,37.15519531,168.11,167.98,1.2206]
[1729879029518,2.9761,168.08,167.98,1.2206]
[1729879029824,37.15519531,168.11,167.98,1.2206]
[1729879030214,37.15519531,168.08,167.98,1.2206]
[1729879030619,2.9766,168.05,167.98,4.1983]
[1729879030820,37.15519531,168.12,167.98,38.37579531]
[1729879031216,37.15519531,168.29,168.07,37.15519531]
[1729879031217,343.0,168.27,168.07,37.15519531]
[1729879031422,37.15519531,168.23,168.09,37.15519531]
[1729879031628,37.15519531,168.29,168.1,11.78]
[1729879031629,37.15519531,168.17,168.1,11.78]
[1729879031824,37.15519531,168.12,167.78,5.9625]
[1729879032031,37.15519531,168.09,167.95,37.15519531]
[1729879032423,2.9768,168.04,167.95,37.15519531]
[1729879033224,2.9767,168.05,167.95,37.15519531]
[1729879033431,37.15519531,168.14,168.0,37.15519531]
[1729879033626,3.676,168.19,168.03,37.15519531]
[1729879033928,37.15519531,168.19,168.06,37.15519531]
[1729879034129,37.15519531,168.19,168.09,2.9758]
[1729879034327,37.15519531,168.19,168.06,37.15519531]
[1729879034627,37.15519531,168.23,168.09,37.15519531]
[1729879035024,2.9747,168.16,168.09,37.15519531]
[1729879035328,37.15519531,168.23,168.11,2.9755]
[1729879035528,37.15519531,168.23,168.09,37.15519531]
[1729879036031,2.9739,168.21,168.12,37.15519531]
[1729879036327,37.15519531,168.2,168.06,64.26]
[1729879036529,2.9757,168.1,168.01,37.15519531]
[1729879036833,37.15519531,168.15,168.03,2.9768]
[1729879037131,37.15519531,168.12,168.04,1.2945]
[1729879038033,37.15519531,168.1,168.02,2.5167]
[1729879038238,37.15519531,168.13,168.02,2.5167]
[1729879038725,2.9759,168.09,168.02,2.5167]
[1729879039025,37.15519531,168.13,168.02,2.5167]
[1729879039628,37.15519531,168.08,167.98,1.2945]
[1729879039820,37.15519531,168.08,167.98,3.7733]
[1729879040238,2.9774,168.01,167.98,3.7733]
[1729879040529,1.2195,168.1,168.0,2.9773]
[1729879040733,2.9765,168.06,167.98,40.92849531]
[1729879041027,37.15519531,168.1,167.98,37.15519531]
[1729879041225,2.9767,168.05,167.89,2.4788]
[1729879041427,37.15519531,168.02,167.89,2.4788]
[1729879041732,37.15519531,168.05,167.91,37.15519531]
[1729879042630,37.15519531,168.02,167.89,39.63399531]
[1729879043430,2.978,167.98,167.93,2.9786]
[1729879043628,37.15519531,168.02,167.89,39.63399531]
[1729879043829,2.978,167.98,167.92,2.9789]
[1729879044033,37.15519531,168.05,167.91,37.15519531]
[1729879044433,2.9773,168.01,167.91,37.15519531]
[1729879044629,37.15519531,168.1,167.96,37.15519531]
[1729879044935,2.9761,168.08,167.97,16.0194]
[1729879045230,37.15519531,168.1,167.97,16.0194]
[1729879046039,37.15519531,168.1,167.99,2.9776]
[1729879046234,2.9767,168.05,167.99,2.9776]
[1729879046633,37.15519531,168.1,167.97,16.0194]
[1729879047137,37.15519531,168.1,168.0,2.9775]
[1729879047331,37.15519531,168.1,167.97,16.0194]
[1729879047632,37.15519531,168.1,168.01,2.9771]
[1729879047837,37.15519531,168.08,167.97,16.0194]
[1729879048140,37.15519531,168.08,167.97,3.8394]
[1729879048332,37.15519531,168.08,167.97,16.0194]
[1729879048833,37.15519531,168.1,167.97,16.0194]
[1729879049238,2.9765,168.06,168.01,2.9772]
[1729879049943,37.15519531,168.1,167.97,16.0194]
[1729879050448,37.15519531,168.12,167.99,37.15519531]
[1729879050631,2.9763,168.07,167.99,37.15519531]
[1729879050935,37.15519531,168.09,167.97,16.0194]
[1729879051136,37.15519531,168.03,167.91,37.15519531]
[1729879051332,37.15519531,168.05,167.92,3.7817]
[1729879051531,2.9782,167.97,167.92,6.7605]
[1729879051934,37.15519531,168.0,167.92,2.5863]
[1729879052132,2.9787,167.93,167.92,2.5863]
[1729879052329,2.9787,167.93,167.87,1.1954]
[1729879052330,37.15519531,168.0,167.87,3.722]
[1729879052729,343.0,168.14,167.91,37.15519531]
[1729879052943,37.15519531,168.06,167.92,11.78]
[1729879053237,2.9775,168.01,167.94,37.15519531]
[1729879053440,37.15519531,168.08,167.95,2.5266]
[1729879053640,2.9773,168.02,167.98,2.9777]
[1729879053937,2.9773,168.02,167.96,1.1954]
[1729879054139,37.15519531,168.08,167.96,38.35059531]
[1729879054342,38.35439531,168.12,167.96,38.35059531]
[1729879054343,2.9764,168.06,167.96,38.35059531]
[1729879054635,38.35439531,168.12,167.96,38.35059531]
[1729879055237,38.35439531,168.12,167.65,575.0]
[1729879055238,37.15519531,168.04,167.65,575.0]
[1729879055437,38.35439531,168.12,167.9,1.2879]
[1729879055438,37.15519531,168.01,167.9,1.2879]
[1729879055634,37.15519531,168.04,167.91,2.582]
[1729879056241,37.15519531,168.06,167.92,37.15519531]
[1729879056534,37.15519531,168.06,167.86,37.15519531]
[1729879056535,37.15519531,168.04,167.88,37.15519531]
[1729879056740,37.15519531,168.06,167.93,37.15519531]
[1729879057040,37.15519531,168.06,167.94,2.6096]
[1729879057434,37.15519531,168.06,167.97,2.9779]
[1729879057642,37.15519531,168.06,167.94,2.6096]
[1729879057943,37.15519531,168.09,167.94,2.6096]
[1729879058635,37.15519531,168.06,167.94,2.6096]
[1729879058836,37.15519531,168.03,167.87,37.15519531]
[1729879059044,37.15519531,168.03,167.89,1.3171]
[1729879059339,2.9782,167.97,167.92,2.9788]
[1729879059534,2.9782,167.97,167.89,1.3171]
[1729879059736,2.9782,167.97,167.91,2.979]
[1729879059929,2.9779,167.98,167.85,1.2065]
[1729879060130,37.15519531,168.0,167.86,37.15519531]
[1729879060344,37.15519531,168.0,167.93,2.9786]
[1729879060740,37.15519531,168.03,167.95,2.9782]
[1729879061046,37.15519531,168.03,167.89,37.15519531]
[1729879061236,2.9778,167.98,167.89,37.15519531]
[1729879061437,37.15519531,168.0,167.89,2.9794]
[1729879061743,2.9782,167.97,167.86,37.15519531]
[1729879061940,2.4567,168.04,167.86,37.15519531]
[1729879061941,37.15519531,168.02,167.86,37.15519531]
[1729879062133,37.15519531,167.99,167.86,37.15519531]
[1729879062338,2.9789,167.93,167.85,12.5665]
[1729879062542,37.15519531,167.99,167.85,12.5665]
[1729879063040,37.15519531,167.99,167.89,2.9794]
[1729879063345,37.15519531,167.99,167.85,1.2065]
[1729879064045,37.15519531,167.99,167.9,2.9791]
[1729879064232,37.15519531,167.99,167.85,1.2065]
[1729879064439,2.9786,167.94,167.9,2.9791]
[1729879064739,39.61189531,168.04,167.85,1.2065]
[1729879064740,37.15519531,167.96,167.85,1.2065]
[1729879065343,37.15519531,167.96,167.84,1.3171]
[1729879065546,2.9794,167.9,167.84,1.3171]
[1729879065740,37.15519531,167.96,167.84,1.3171]
[1729879066642,37.15519531,167.99,167.86,37.15519531]
[1729879066842,37.15519531,167.93,167.68,17.74]
[1729879067038,3.6781,167.92,167.79,37.15519531]
[1729879067240,37.15519531,167.95,167.8,3.898]
[1729879067438,37.15519531,167.92,167.8,3.898]
[1729879067641,2.9797,167.88,167.83,2.9805]
[1729879068143,2.9797,167.88,167.8,3.898]
[1729879068144,3.6785,167.94,167.8,37.15519531]
[1729879068345,37.15519531,167.91,167.8,1.3194]
[1729879068748,2.9797,167.88,167.8,4.3004]
[1729879068942,37.15519531,167.91,167.8,1.3194]
[1729879070441,40.83369531,167.94,167.8,38.47459531]
[1729879070642,2.9793,167.9,167.85,2.9801]
[1729879070853,40.83369531,167.94,167.8,38.47459531]
[1729879071047,10.96,168.0,167.86,37.15519531]
[1729879071048,37.15519531,168.0,167.86,37.15519531]
[1729879071244,3.6627,167.99,167.89,2.9794]
[1729879071440,3.6627,167.99,167.86,37.15519531]
[1729879071747,3.6627,167.99,167.88,37.15519531]
[1729879071748,2.9778,167.98,167.88,37.15519531]
[1729879071936,3.6627,167.99,167.88,37.15519531]
[1729879072142,2.978,167.98,167.93,2.9786]
[1729879072345,1.206,167.99,167.89,1.2141]
[1729879072743,2.9782,167.96,167.92,2.9789]
[1729879072947,1.206,167.99,167.85,37.15519531]
[1729879073552,1.206,167.99,167.66,11.9339]
[1729879073553,5.96,167.86,167.4,5.976]
[1729879073851,74.31039062,167.63,167.37,13.5089]
[1729879074040,37.15519531,167.58,167.37,13.5089]
[1729879074238,37.15519531,167.58,167.37,16.43119672]
[1729879074449,37.15519531,167.58,167.41,37.15519531]
[1729879074651,37.15519531,167.55,167.37,13.5089]
[1729879074842,37.15519531,167.55,167.27,2.11518595]
[1729879074843,37.15519531,167.46,167.27,2.11518595]
[1729879075038,37.15519531,167.52,167.32,37.15519531]
[1729879075039,2.987,167.47,167.32,37.15519531]
[1729879075242,37.15519531,167.48,167.27,2.11518595]
[1729879075453,37.15519531,167.45,167.28,3.7693]
[1729879075747,37.15519531,167.45,167.34,2.9892]
[1729879075940,37.15519531,167.53,167.34,11.36]
[1729879075941,37.15519531,167.48,167.34,11.36]
[1729879076446,37.15519531,167.48,167.27,2.11518595]
[1729879076447,37.15519531,167.41,167.27,39.27038126]
[1729879076645,37.15519531,167.41,167.27,2.11518595]
[1729879076839,48.51519531,167.53,167.27,2.11518595]
[1729879076840,38.15519531,167.47,167.34,40.14429531]
[1729879077045,37.15519531,167.5,167.37,37.15519531]
[1729879077344,37.15519531,167.51,167.36,37.15519531]
[1729879077545,37.15519531,167.51,167.36,50.11519531]
[1729879077742,37.15519531,167.54,167.38,37.15519531]
[1729879077938,37.15519531,167.6,167.44,37.15519531]
[1729879078143,4.72067024,167.53,167.37,64.38]
[1729879078347,37.15519531,167.6,167.44,37.15519531]
[1729879078547,37.15519531,167.56,167.41,37.15519531]
[1729879078750,37.15519531,167.53,167.38,1.2288]
[1729879079051,37.15519531,167.57,167.41,37.15519531]
[1729879079250,37.15519531,167.51,167.36,1.2161]
[1729879079464,37.15519531,167.41,167.27,2.11518595]
[1729879079752,37.15519531,167.37,167.27,2.11518595]
[1729879080058,13.56,167.4,167.27,2.11518595]
[1729879080059,13.56,167.38,167.27,2.11518595]
[1729879080550,37.15519531,167.4,167.27,2.11518595]
[1729879081047,37.15519531,167.43,167.29,37.15519531]
[1729879081249,37.15519531,167.43,167.27,2.11518595]
[1729879081250,37.15519531,167.39,167.27,2.11518595]
[1729879081638,37.15519531,167.32,167.27,2.11518595]
[1729879082041,37.15519531,167.35,167.27,2.11518595]
[1729879082446,37.15519531,167.28,167.1,9.86072117]
[1729879082644,37.15519531,167.25,167.11,37.15519531]
[1729879082841,37.15519531,167.22,167.1,9.86072117]
[1729879083246,37.15519531,167.35,166.8,5.9978]
[1729879083450,37.15519531,167.2,166.94,2.5388]